bitfinex/quotes_BTCUSD_20250617
["timestamp","ask_amount","ask_price","bid_price","bid_amount"]
[1750122500946,0.37730811,107210.0,107200.0,0.57222869]
[1750122501192,0.3689808,107210.0,107200.0,0.57222869]
[1750122501432,0.341,107210.0,107200.0,0.57222869]
[1750122501614,0.35965401,107210.0,107200.0,0.57222869]
[1750122501819,0.37830854,107210.0,107200.0,0.57222869]
[1750122502023,0.5741857,107210.0,107200.0,0.5442452]
[1750122502344,0.81619975,107210.0,107200.0,0.50061162]
[1750122502754,0.36165453,107210.0,107200.0,0.50993936]
[1750122503715,0.38030941,107210.0,107200.0,0.50993936]
[1750122503899,0.38030941,107210.0,107200.0,0.50993954]
[1750122504113,0.3523267,107210.0,107200.0,0.61550904]
[1750122504318,0.343,107210.0,107200.0,0.61550904]
[1750122504742,0.3523267,107210.0,107200.0,0.61550904]
[1750122504976,0.343,107210.0,107200.0,0.61550904]
[1750122505179,0.3523267,107210.0,107200.0,0.61550904]
[1750122505401,0.343,107210.0,107200.0,0.61550904]
[1750122506036,0.3523267,107210.0,107200.0,0.61550904]
[1750122506242,0.343,107210.0,107200.0,0.61550904]
[1750122506449,0.3523267,107210.0,107200.0,0.61550904]
[1750122506870,0.343,107210.0,107200.0,0.61550904]
[1750122509645,0.003,107210.0,107200.0,0.61550904]
[1750122510613,0.001,107210.0,107200.0,0.61550904]
[1750122510806,0.34932583,107220.0,107210.0,0.21453117]
[1750122511132,0.34932583,107220.0,107210.0,0.27833117]
[1750122511515,0.35865183,107220.0,107210.0,0.27833117]
[1750122512090,0.35965183,107220.0,107210.0,0.27833117]
[1750122512300,0.37830454,107220.0,107210.0,0.27833117]
[1750122512784,0.37830524,107220.0,107210.0,0.48145117]
[1750122513003,0.36897871,107220.0,107210.0,0.48145117]
[1750122513419,0.37830524,107220.0,107210.0,0.48145117]
[1750122513626,0.6369733,107220.0,107210.0,0.48145117]
[1750122514037,0.62764677,107220.0,107210.0,0.48145117]
[1750122514555,0.36897871,107220.0,107210.0,0.48145117]
[1750122514786,0.36897871,107220.0,107210.0,0.01032748]
[1750122514787,0.81417966,107220.0,107210.0,0.01032748]
[1750122515012,0.81417966,107220.0,107210.0,0.40832464]
[1750122515424,0.81417966,107220.0,107210.0,0.19687724]
[1750122515632,0.80485339,107220.0,107210.0,0.39895724]
[1750122515839,0.80485339,107220.0,107210.0,0.40828464]
[1750122516493,0.79552695,107220.0,107210.0,0.001]
[1750122516702,0.8721678,107220.0,107210.0,0.001]
[1750122517133,0.96840956,107220.0,107210.0,0.001]
[1750122517980,0.99072354,107220.0,107210.0,0.001]
[1750122518622,0.223879,107200.0,107190.0,0.39202877]
[1750122518838,0.29597973,107200.0,107190.0,0.45462772]
[1750122519046,0.2535136,107200.0,107190.0,0.45462772]
[1750122519259,0.24418525,107200.0,107190.0,0.45462772]
[1750122519469,0.2535136,107200.0,107190.0,0.44529911]
[1750122519961,0.2535136,107200.0,107190.0,0.44829911]
[1750122520385,0.24418525,107200.0,107190.0,0.45762772]
[1750122520595,0.42142528,107200.0,107190.0,0.42031274]
[1750122520803,0.41209719,107200.0,107190.0,0.4296417]
[1750122521013,0.46383246,107200.0,107190.0,0.4296417]
[1750122521222,0.01865645,107200.0,107190.0,0.44929919]
[1750122521425,0.0279848,107200.0,107190.0,0.44929937]
[1750122521840,0.01865645,107200.0,107190.0,0.45862798]
[1750122522365,0.21455196,107200.0,107190.0,0.4306417]
[1750122522576,0.80383263,107200.0,107190.0,0.1628]
[1750122522757,0.80383263,107200.0,107190.0,0.004]
[1750122522969,0.80383263,107200.0,107190.0,0.16276]
[1750122523174,0.80383263,107200.0,107190.0,0.37733162]
[1750122523380,0.80383263,107200.0,107190.0,0.39870274]
[1750122523582,0.80383263,107200.0,107190.0,0.36800274]
[1750122524014,0.80383263,107200.0,107190.0,0.39870274]
[1750122524242,0.79450436,107200.0,107190.0,0.39870274]
[1750122524655,0.79450436,107200.0,107190.0,0.38937378]
[1750122524859,0.79450436,107200.0,107190.0,0.39870292]
[1750122524992,0.79450436,107200.0,107190.0,0.40803197]
[1750122525216,0.79450436,107200.0,107190.0,0.41736093]
[1750122525432,0.34932757,107200.0,107190.0,0.45718963]
[1750122525622,0.35865584,107200.0,107190.0,0.45718902]
[1750122526316,0.34,107200.0,107190.0,0.45718902]
[1750122526541,0.34,107200.0,107190.0,0.29842902]
[1750122526770,0.37730828,107210.0,107200.0,0.27745118]
[1750122526953,0.38663568,107210.0,107200.0,0.27745118]
[1750122527194,0.55453169,107210.0,107200.0,0.26812361]
[1750122527405,0.54520447,107210.0,107200.0,0.27745162]
[1750122527665,0.54520447,107210.0,107200.0,0.26812361]
[1750122527870,0.53587716,107210.0,107200.0,0.07222827]
[1750122528082,0.53687716,107210.0,107200.0,0.07222827]
[1750122528511,0.78615861,107210.0,107200.0,0.07222827]
[1750122528708,0.78615861,107210.0,107200.0,0.031]
[1750122528933,0.78615861,107210.0,107200.0,0.001]
[1750122529623,0.78615861,107210.0,107200.0,0.15976]
[1750122529828,0.78615861,107210.0,107200.0,0.23388835]
[1750122530043,0.78615861,107210.0,107200.0,0.22456]
[1750122530247,0.78615861,107210.0,107200.0,0.19266]
[1750122530677,0.78615861,107210.0,107200.0,0.23418835]
[1750122532201,0.78615861,107210.0,107200.0,0.22486]
[1750122533236,0.78615861,107210.0,107200.0,0.23418835]
[1750122533759,0.78615861,107210.0,107200.0,0.22486]
[1750122533970,0.78615861,107210.0,107200.0,0.43008361]
[1750122534853,0.79548609,107210.0,107200.0,0.43008361]
[1750122535321,0.79548609,107210.0,107200.0,0.27132361]
[1750122535530,0.79548609,107210.0,107200.0,0.42075543]
[1750122535837,0.78615861,107210.0,107200.0,0.22486]
[1750122536228,0.78615861,107210.0,107200.0,0.42075543]
[1750122536585,0.78615861,107210.0,107200.0,0.42071543]
[1750122537490,0.78615861,107210.0,107200.0,0.22482]
[1750122537982,0.52754976,107210.0,107200.0,0.22482]
[1750122538186,0.78615861,107210.0,107200.0,0.22482]
[1750122538589,0.78615861,107210.0,107200.0,0.23414835]
[1750122538799,0.78615861,107210.0,107200.0,0.24347662]
[1750122539442,0.78615861,107210.0,107200.0,0.43937187]
[1750122539754,0.341,107210.0,107200.0,0.43937187]
[1750122539961,0.001,107210.0,107200.0,0.41554938]
[1750122540154,0.001,107210.0,107200.0,0.61754938]
[1750122541263,0.01032687,107210.0,107200.0,0.61754938]
[1750122541563,0.01965383,107210.0,107200.0,0.61754938]
[1750122542386,0.01032687,107210.0,107200.0,0.61754938]
[1750122542814,0.01965392,107210.0,107200.0,0.61754938]
[1750122543147,0.01032687,107210.0,107200.0,0.61754938]
[1750122543343,0.01965383,107210.0,107200.0,0.61754938]
[1750122544405,0.01032679,107210.0,107200.0,0.61754938]
[1750122544612,0.001,107210.0,107200.0,0.61754938]
[1750122545010,0.01965375,107210.0,107200.0,0.61754938]
[1750122545232,0.001,107210.0,107200.0,0.61754938]
[1750122545795,0.01032679,107210.0,107200.0,0.61754938]
[1750122546018,0.01965384,107210.0,107200.0,0.61754938]
[1750122546260,0.01965384,107210.0,107200.0,0.41554938]
[1750122546486,0.01965375,107210.0,107200.0,0.61742938]
[1750122546746,0.01965366,107210.0,107200.0,0.61742938]
[1750122546962,0.42231463,107210.0,107200.0,0.44067551]
[1750122547164,0.40366027,107210.0,107200.0,0.25410835]
[1750122547427,0.40366027,107210.0,107200.0,0.17968]
[1750122548659,0.40366027,107210.0,107200.0,0.17964]
[1750122548890,0.40356699,107210.0,107200.0,0.17964]
[1750122549100,0.74356699,107210.0,107200.0,0.021]
[1750122549329,0.74356699,107210.0,107200.0,0.17964]
[1750122549804,0.74356699,107210.0,107200.0,0.18896835]
[1750122550031,0.74446768,107210.0,107200.0,0.21946835]
[1750122550252,0.73514028,107210.0,107200.0,0.21014]
[1750122553023,0.73514028,107210.0,107200.0,0.17964]
[1750122554081,0.73514028,107210.0,107200.0,0.21014]
[1750122554334,0.73514028,107210.0,107200.0,0.24946835]
[1750122555275,0.73514028,107210.0,107200.0,0.24014]
[1750122555487,0.73514028,107210.0,107200.0,0.24946835]
[1750122556015,0.73514028,107210.0,107200.0,0.17964]
[1750122556717,0.73514028,107210.0,107200.0,0.21054]
[1750122557404,0.73514028,107210.0,107200.0,0.17964]
[1750122559246,0.73514028,107210.0,107200.0,0.21094]
[1750122559906,0.73514028,107210.0,107200.0,0.24254]
[1750122561040,0.73514028,107210.0,107200.0,0.25186827]
[1750122561263,0.73514028,107210.0,107200.0,0.24254]
[1750122561702,0.73514028,107210.0,107200.0,0.43843543]
[1750122562174,0.73514028,107210.0,107200.0,0.24254]
[1750122564407,0.73514028,107210.0,107200.0,0.25186835]
[1750122564623,0.73514028,107210.0,107200.0,0.24254]
[1750122564973,0.73514028,107210.0,107200.0,0.2425]
[1750122567012,0.34180741,107210.0,107200.0,0.45705143]
[1750122567233,0.36978864,107210.0,107200.0,0.46637917]
[1750122567474,0.00180741,107210.0,107200.0,0.56262093]
[1750122567710,0.00180741,107210.0,107200.0,0.76940404]
[1750122567924,0.00180741,107210.0,107200.0,0.56262093]
[1750122568367,0.02046098,107210.0,107200.0,0.56262093]
[1750122568606,0.02046098,107210.0,107200.0,0.60582093]
[1750122568848,0.23657157,107210.0,107200.0,0.42856536]
[1750122569069,0.24589888,107210.0,107200.0,0.60578111]
[1750122569613,0.43244864,107210.0,107200.0,0.25046716]
[1750122569744,0.42312229,107210.0,107200.0,0.1071]
[1750122569958,0.42312229,107210.0,107200.0,0.47088378]
[1750122570403,0.41379507,107210.0,107200.0,0.27498835]
[1750122570631,0.41379507,107210.0,107200.0,0.07322835]
[1750122570835,0.41379507,107210.0,107200.0,0.0639]
[1750122571101,0.41379507,107210.0,107200.0,0.46155534]
[1750122571304,0.41379507,107210.0,107200.0,0.46155543]
[1750122572252,0.41379507,107210.0,107200.0,0.47088361]
[1750122572972,0.22724436,107210.0,107200.0,0.49886727]
[1750122573212,0.02978856,107210.0,107200.0,0.49886727]
[1750122573501,0.02046125,107210.0,107200.0,0.49886727]
[1750122573743,0.02978839,107210.0,107200.0,0.49886727]
[1750122573987,0.00180741,107210.0,107200.0,0.51886727]
[1750122574229,0.00180741,107210.0,107200.0,0.82189214]
[1750122575147,0.00180741,107210.0,107200.0,1.02189214]
[1750122576312,0.00180741,107210.0,107200.0,0.81510903]
[1750122576537,0.00090069,107210.0,107200.0,1.02189214]
[1750122577190,0.00090069,107210.0,107200.0,1.02089214]
[1750122577452,0.00190069,107210.0,107200.0,1.02089214]
[1750122577648,0.00190069,107210.0,107200.0,1.02489214]
[1750122577864,0.00090069,107210.0,107200.0,1.02489214]
[1750122578305,0.00090069,107210.0,107200.0,1.02689214]
[1750122582296,0.00090069,107210.0,107200.0,0.59994903]
[1750122582515,0.2076838,107210.0,107200.0,0.39834903]
[1750122582724,0.2076838,107210.0,107200.0,0.59994903]
[1750122582725,0.21701067,107210.0,107200.0,0.59994903]
[1750122582936,0.22633772,107210.0,107200.0,0.59994903]
[1750122583408,0.75288792,107210.0,107200.0,0.006]
[1750122583628,0.57690481,107210.0,107200.0,0.006]
[1750122583885,0.75288792,107210.0,107200.0,0.36037551]
[1750122584096,0.7622154,107210.0,107200.0,0.16448]
[1750122584296,0.7622154,107210.0,107200.0,0.16980835]
[1750122584512,0.7622154,107210.0,107200.0,0.15848]
[1750122584994,0.7632154,107210.0,107200.0,0.15848]
[1750122585212,0.75388835,107210.0,107200.0,0.15848]
[1750122589691,0.75388835,107210.0,107200.0,0.16780827]
[1750122591167,0.75388835,107210.0,107200.0,0.15848]
[1750122591391,0.81648835,107210.0,107200.0,0.00932835]
[1750122591620,0.03731515,107190.0,107180.0,0.25846924]
[1750122591830,0.24409826,107190.0,107180.0,0.43556838]
[1750122592043,0.24409826,107190.0,107180.0,0.46656838]
[1750122592263,0.2534274,107190.0,107180.0,0.46656838]
[1750122592480,0.25342818,107190.0,107180.0,0.4572389]
[1750122592714,0.25342818,107190.0,107180.0,0.46656847]
[1750122593134,0.24409948,107190.0,107180.0,0.47056847]
[1750122593349,0.25365364,107190.0,107180.0,0.27100847]
[1750122593550,0.23499528,107190.0,107180.0,0.48189795]
[1750122593797,0.23499528,107190.0,107180.0,0.51389795]
[1750122594646,0.00955416,107190.0,107180.0,0.51389795]
[1750122594851,0.57476756,107200.0,107190.0,0.20524258]
[1750122594852,0.76133472,107200.0,107190.0,0.20524258]
[1750122595069,0.57476756,107200.0,107190.0,0.20524258]
[1750122595321,0.57476687,107200.0,107190.0,0.27907119]
[1750122595541,0.57577282,107210.0,107200.0,0.27905118]
[1750122595757,0.78097693,107210.0,107200.0,0.42816344]
[1750122595986,0.76232292,107210.0,107200.0,0.15844]
[1750122596895,0.814125,107210.0,107200.0,0.15844]
[1750122597101,0.20522334,107200.0,107190.0,0.2614137]
[1750122597316,0.46380853,107200.0,107190.0,0.20256]
[1750122597524,0.4544807,107200.0,107190.0,0.20156]
[1750122597733,0.4544807,107200.0,107190.0,0.35435378]
[1750122597938,0.4544807,107200.0,107190.0,0.36368292]
[1750122598159,0.4544807,107200.0,107190.0,0.20524292]
[1750122598362,0.19589551,107200.0,107190.0,0.00932922]
[1750122598578,0.4544807,107200.0,107190.0,0.16776922]
[1750122598780,0.19591361,107190.0,107180.0,0.27051949]
[1750122599094,0.02798715,107190.0,107180.0,0.50006837]
[1750122599589,0.02798689,107190.0,107180.0,0.50006837]
[1750122599739,0.00932861,107190.0,107180.0,0.50006837]
[1750122599936,0.28657216,107190.0,107180.0,0.50006837]
[1750122600139,0.29590104,107190.0,107180.0,0.49073889]
[1750122600379,0.4824856,107190.0,107180.0,0.33229907]
[1750122600578,0.88016896,107190.0,107180.0,0.0100876]
[1750122601329,0.97641072,107190.0,107180.0,0.0100876]
[1750122601544,0.97641072,107190.0,107180.0,0.0120876]
[1750122601768,1.18582071,107190.0,107180.0,0.0120876]
[1750122601988,1.20811174,107190.0,107180.0,0.0120876]
[1750122602207,0.54529986,107160.0,107150.0,0.20152]
[1750122602420,0.80388505,107160.0,107150.0,0.04359162]
[1750122602637,0.80388505,107160.0,107150.0,0.00047162]
[1750122603078,0.80388505,107160.0,107150.0,0.15887162]
[1750122603489,0.80388505,107160.0,107150.0,0.16087162]
[1750122603916,0.80147605,107160.0,107150.0,0.16087162]
[1750122604185,0.80147605,107160.0,107150.0,0.00347162]
[1750122604186,0.86417605,107160.0,107150.0,0.00347162]
[1750122604343,1.13730209,107160.0,107150.0,0.00347162]
[1750122604567,1.23354385,107160.0,107150.0,0.00347162]
[1750122605200,1.23354385,107160.0,107150.0,0.00147162]
[1750122605421,1.26157885,107160.0,107150.0,0.00147162]
[1750122605630,1.26557885,107160.0,107150.0,0.00147162]
[1750122606048,1.26557885,107160.0,107150.0,0.00047162]
[1750122606275,0.53604172,107120.0,107110.0,0.0627]
[1750122606487,0.79462691,107120.0,107110.0,0.20539604]
[1750122606706,0.79462691,107120.0,107110.0,0.1584]
[1750122606931,0.79462691,107120.0,107100.0,0.36941575]
[1750122606932,0.19605994,107110.0,107100.0,0.36941575]
[1750122607151,0.80398106,107110.0,107100.0,0.17344]
[1750122607379,0.56406781,107110.0,107100.0,0.53725522]
[1750122607613,0.83198919,107110.0,107100.0,0.53730232]
[1750122607825,0.8320207,107110.0,107100.0,0.53730232]
[1750122608083,0.8320207,107110.0,107100.0,0.54663903]
[1750122608302,0.82268477,107110.0,107100.0,0.54663903]
[1750122608717,0.80401265,107110.0,107100.0,0.48492552]
[1750122608918,0.80401265,107110.0,107100.0,0.50359921]
[1750122609131,0.80921731,107110.0,107100.0,0.1020471]
[1750122609357,1.00160829,107110.0,107100.0,0.1020471]
[1750122609579,1.03520829,107110.0,107100.0,0.1020471]
[1750122609787,1.09749907,107110.0,107100.0,0.1020471]
[1750122610002,1.06389907,107110.0,107100.0,0.1020471]
[1750122610208,0.90545907,107110.0,107100.0,0.1020471]
[1750122610436,1.06789907,107110.0,107100.0,0.1020471]
[1750122610646,0.65087388,107110.0,107100.0,0.1020471]
[1750122610848,0.81321731,107110.0,107100.0,0.1020471]
[1750122611065,0.80921731,107110.0,107100.0,0.29812544]
[1750122611275,0.80921731,107110.0,107100.0,0.1020471]
[1750122611484,0.80921731,107110.0,107100.0,0.11138408]
[1750122611740,0.55063212,107110.0,107100.0,0.29612535]
[1750122611957,0.55063212,107110.0,107100.0,0.32892552]
[1750122612168,0.37937487,107110.0,107100.0,0.38873548]
[1750122612387,0.37937487,107110.0,107100.0,0.36072552]
[1750122612388,0.5700994,107110.0,107100.0,0.36072552]
[1750122612605,0.5700994,107110.0,107100.0,0.37939895]
[1750122612817,0.5700994,107110.0,107100.0,0.1646471]
[1750122613031,0.8338896,107110.0,107100.0,0.1000471]
[1750122613464,0.93013136,107110.0,107100.0,0.1000471]
[1750122615040,0.93013136,107110.0,107100.0,0.11725961]
[1750122615522,1.58158058,107110.0,107100.0,0.11725961]
[1750122615747,1.48543136,107110.0,107100.0,0.11725961]
[1750122615966,1.48543136,107110.0,107100.0,0.1000471]
[1750122618481,1.64459136,107110.0,107100.0,0.1000471]
[1750122619070,1.48543136,107110.0,107100.0,0.1000471]
[1750122619277,1.42343136,107110.0,107100.0,0.1000471]
[1750122619460,1.67866058,107110.0,107100.0,0.1000471]
[1750122619703,1.16484617,107110.0,107100.0,0.1000471]
[1750122619914,0.20543406,107090.0,107080.0,0.01]
[1750122620121,0.4785601,107090.0,107080.0,0.02737086]
[1750122620336,0.60690186,107090.0,107080.0,0.02737086]
[1750122620759,0.57480186,107090.0,107080.0,0.02737086]
[1750122620967,1.07408186,107090.0,107080.0,0.02737086]
[1750122621205,1.07408186,107090.0,107080.0,0.02737607]
[1750122621206,1.10598186,107090.0,107080.0,0.02737607]
[1750122621401,1.07408186,107090.0,107080.0,0.01014137]
[1750122621603,1.07408186,107090.0,107080.0,0.02737874]
[1750122621809,1.07508186,107090.0,107080.0,0.02737874]
[1750122622221,1.07508186,107090.0,107080.0,0.02937874]
[1750122622594,1.49271627,107090.0,107080.0,0.02937874]
[1750122622752,0.62111327,107070.0,107060.0,0.1]
[1750122622960,1.13530022,107070.0,107060.0,0.11728745]
[1750122623164,1.13530022,107070.0,107060.0,0.10004704]
[1750122624582,0.56001327,107070.0,107060.0,0.29619872]
[1750122624779,0.81859846,107070.0,107060.0,0.33773918]
[1750122624977,0.83093814,107070.0,107060.0,0.38711985]
[1750122625226,0.8215989,107070.0,107060.0,0.16294704]
[1750122625400,0.8215989,107070.0,107060.0,0.35909863]
[1750122625583,0.8162594,107070.0,107060.0,0.35909863]
[1750122625806,0.8132594,107070.0,107060.0,0.35909863]
[1750122626031,0.55881176,107070.0,107060.0,0.36843901]
[1750122626234,0.5464726,107070.0,107060.0,0.16294704]
[1750122626434,0.9158404,107070.0,107060.0,0.10004704]
[1750122627263,1.01198962,107070.0,107060.0,0.10004704]
[1750122627477,1.04308962,107070.0,107060.0,0.10004704]
[1750122627685,1.07528962,107070.0,107060.0,0.10004704]
[1750122627896,1.07728962,107070.0,107060.0,0.10004704]
[1750122629052,1.01398962,107070.0,107060.0,0.10004704]
[1750122629265,0.9178404,107070.0,107060.0,0.10004704]
[1750122629493,0.94558136,107070.0,107060.0,0.10004704]
[1750122629725,0.59075441,107070.0,107060.0,0.37123901]
[1750122629938,0.38941988,107070.0,107060.0,0.38057921]
[1750122630151,0.58555324,107070.0,107060.0,0.38991933]
[1750122630597,0.57621382,107070.0,107060.0,0.37123901]
[1750122631337,0.55753464,107070.0,107060.0,0.16574704]
[1750122631549,0.81611983,107070.0,107060.0,0.16574704]
[1750122632184,0.55753464,107070.0,107060.0,0.16574704]
[1750122632405,0.81611983,107070.0,107060.0,0.16574704]
[1750122633049,0.92690244,107070.0,107060.0,0.10004704]
[1750122633260,0.92690244,107070.0,107060.0,0.11732008]
[1750122633487,0.83066068,107070.0,107060.0,0.17962008]
[1750122634549,0.85294196,107070.0,107060.0,0.17962008]
[1750122635481,0.94918372,107070.0,107060.0,0.11732008]
[1750122636338,1.10910372,107070.0,107060.0,0.11732008]
[1750122636585,1.23303824,107070.0,107060.0,0.11732008]
[1750122636856,1.17414927,107070.0,107060.0,0.11732008]
[1750122639098,0.75564408,107070.0,107060.0,0.11732008]
[1750122639299,1.13656902,107070.0,107060.0,0.18022008]
[1750122639561,0.97696902,107070.0,107060.0,0.18022008]
[1750122640916,0.88072726,107070.0,107060.0,0.37637159]
[1750122641153,0.88072726,107070.0,107060.0,0.37637176]
[1750122641376,0.88072726,107070.0,107060.0,0.38571222]
[1750122641821,0.4117009,107070.0,107060.0,0.56387236]
[1750122642359,0.39875852,107070.0,107060.0,0.56387236]
[1750122642560,0.4210398,107070.0,107060.0,0.54659932]
[1750122642771,0.4210398,107070.0,107060.0,0.56395408]
[1750122642990,0.42103971,107070.0,107060.0,0.56395408]
[1750122643234,0.43037921,107070.0,107060.0,0.56395408]
[1750122643443,0.4397188,107070.0,107060.0,0.56395408]
[1750122643906,0.4397188,107070.0,107060.0,0.54659932]
[1750122644116,0.4397195,107070.0,107060.0,0.5465995]
[1750122644340,0.43038034,107070.0,107060.0,0.5465995]
[1750122644529,0.6796262,107070.0,107060.0,0.53725938]
[1750122644780,0.42104101,107070.0,107060.0,0.53725938]
[1750122645016,0.6796262,107070.0,107060.0,0.5465995]
[1750122645234,0.6796262,107070.0,107060.0,0.55593953]
[1750122645460,0.42104101,107070.0,107060.0,0.55593953]
[1750122645666,0.67028652,107070.0,107060.0,0.55593892]
[1750122646071,0.42103988,107070.0,107060.0,0.55593892]
[1750122646328,0.43037947,107070.0,107060.0,0.55593892]
[1750122646536,0.43037947,107070.0,107060.0,0.33192759]
[1750122646537,0.88096065,107070.0,107060.0,0.33192759]
[1750122646755,0.90874595,107070.0,107060.0,0.33192759]
[1750122647182,0.43948612,107070.0,107060.0,0.54675932]
[1750122647397,0.45816521,107070.0,107060.0,0.54675941]
[1750122647632,0.44882562,107070.0,107060.0,0.54675941]
[1750122647852,0.63561982,107070.0,107060.0,0.53741956]
[1750122648064,0.88486559,107070.0,107060.0,0.32258704]
[1750122648276,0.89006694,107070.0,107060.0,0.16294704]
[1750122648708,0.63148175,107070.0,107060.0,0.16294704]
[1750122648928,0.89006694,107070.0,107060.0,0.10004704]
[1750122650036,0.89006694,107070.0,107060.0,0.16494704]
[1750122651854,0.92732719,107070.0,107060.0,0.16494704]
[1750122652056,0.89954189,107070.0,107060.0,0.16494704]
[1750122652300,0.99578365,107070.0,107060.0,0.16494704]
[1750122652493,1.06932965,107070.0,107060.0,0.10004704]
[1750122652921,0.99578365,107070.0,107060.0,0.10004704]
[1750122653124,1.05167403,107070.0,107060.0,0.10004704]
[1750122654870,0.99578365,107070.0,107060.0,0.10004704]
[1750122655288,1.05167403,107070.0,107060.0,0.10004704]
[1750122655505,1.05948365,107070.0,107060.0,0.10004704]
[1750122655666,1.11537403,107070.0,107060.0,0.10004704]
[1750122655878,1.05167403,107070.0,107060.0,0.10004704]
[1750122656081,1.21115403,107070.0,107060.0,0.16294704]
[1750122656297,1.15526365,107070.0,107060.0,0.10004704]
[1750122656469,1.18324633,107070.0,107060.0,0.10004704]
[1750122657093,1.21130333,107070.0,107060.0,0.10004704]
[1750122658527,0.03737809,107010.0,107000.0,0.24204084]
[1750122658742,0.03737809,107010.0,107000.0,0.28514764]
[1750122658933,0.46417318,107010.0,107000.0,0.0024618]
[1750122659152,0.46417318,107010.0,107000.0,0.2675618]
[1750122659153,0.20558799,107010.0,107000.0,0.2675618]
[1750122659297,0.46417318,107010.0,107000.0,0.2675618]
[1750122659703,0.45482853,107010.0,107000.0,0.2725618]
[1750122659916,0.45482853,107010.0,107000.0,0.2725218]
[1750122660118,0.45482853,107010.0,107000.0,0.0661618]
[1750122660339,0.79482853,107010.0,107000.0,0.0661618]
[1750122660536,0.79482853,107010.0,107000.0,0.2236018]
[1750122661778,0.34,107010.0,107000.0,0.438554]
[1750122662001,0.341,107010.0,107000.0,0.438554]
[1750122662190,0.36932912,107010.0,107000.0,0.53479576]
[1750122662660,0.36932912,107010.0,107000.0,0.53679576]
[1750122662883,0.36932912,107010.0,107000.0,0.39535576]
[1750122662884,0.02932912,107010.0,107000.0,0.39535576]
[1750122663098,0.001,107010.0,107000.0,0.59851576]
[1750122663334,0.001,107010.0,107000.0,0.54851576]
[1750122664900,0.001,107010.0,107000.0,0.80710095]
[1750122665312,0.001,107010.0,107000.0,1.00710095]
[1750122666202,0.07422872,107040.0,107030.0,0.21489195]
[1750122666451,0.4933,107050.0,107040.0,0.27737188]
[1750122666693,0.50249401,107050.0,107040.0,0.27737188]
[1750122667379,0.8333,107050.0,107040.0,0.27737188]
[1750122667801,0.83376959,107050.0,107040.0,0.27737188]
[1750122668239,0.00046959,107050.0,107040.0,0.48045188]
[1750122668447,0.00046959,107050.0,107040.0,0.59669364]
[1750122669284,0.00046959,107050.0,107040.0,0.59869364]
[1750122671918,0.00046959,107050.0,107040.0,0.59837364]
[1750122672402,0.00046959,107050.0,107040.0,1.05695883]
[1750122672867,0.00046959,107050.0,107040.0,0.85419883]
[1750122673178,0.00046959,107050.0,107040.0,0.37561364]
[1750122673416,0.00046959,107050.0,107040.0,0.57829364]
[1750122673657,0.00046959,107050.0,107040.0,1.03687883]
[1750122674809,0.00046959,107050.0,107040.0,1.23687883]
[1750122675025,0.00046959,107050.0,107040.0,1.25687883]
[1750122675906,0.00046959,107050.0,107040.0,1.25695883]
[1750122676576,0.00046959,107050.0,107040.0,1.27495883]
[1750122677095,0.00046959,107050.0,107040.0,1.27895883]
[1750122677339,0.00046959,107050.0,107040.0,1.27991883]
[1750122678892,0.00046959,107050.0,107040.0,1.27975883]
[1750122681474,0.00046959,107050.0,107040.0,1.37800883]
[1750122681686,0.00046959,107050.0,107040.0,1.27955883]
[1750122682778,0.00046959,107050.0,107040.0,1.27951883]
[1750122684401,0.00046959,107050.0,107040.0,1.33578402]
[1750122684615,0.00046959,107050.0,107040.0,1.53810402]
[1750122685247,0.00046959,107050.0,107040.0,1.07719883]
[1750122685462,0.00046959,107050.0,107040.0,1.27951883]
[1750122686737,0.00046959,107050.0,107040.0,1.27947883]
[1750122687034,0.00046959,107050.0,107040.0,1.53806402]
[1750122687232,0.00046959,107050.0,107040.0,1.33578402]
[1750122687433,0.00046959,107050.0,107040.0,1.53806402]
[1750122687638,0.00018933,107050.0,107040.0,1.27947883]
[1750122687845,0.00018933,107050.0,107040.0,1.53806402]
[1750122688650,0.00018933,107050.0,107040.0,1.37934402]
[1750122688860,0.00018933,107050.0,107040.0,1.53806402]
[1750122690688,0.00018933,107050.0,107040.0,1.37934402]
[1750122690901,0.00018933,107050.0,107040.0,1.33578402]
[1750122691417,0.00018933,107050.0,107040.0,1.27947883]
[1750122692080,0.00018933,107050.0,107040.0,1.53806402]
[1750122693048,0.00018933,107050.0,107040.0,1.37934402]
[1750122693439,0.00018933,107050.0,107040.0,1.53806402]
[1750122693849,0.00018933,107050.0,107040.0,1.37934402]
[1750122694056,0.00018933,107050.0,107040.0,1.30752383]
[1750122695131,0.00018933,107050.0,107040.0,1.10524383]
[1750122695344,0.00018933,107050.0,107040.0,1.30752383]
[1750122695749,0.00018933,107050.0,107040.0,1.14880383]
[1750122695936,0.00018933,107050.0,107040.0,1.30752383]
[1750122696176,0.00018933,107050.0,107040.0,1.40738902]
[1750122696393,0.00018933,107050.0,107040.0,1.56610902]
[1750122696577,0.00018933,107050.0,107040.0,1.30752383]
[1750122699119,0.00018933,107050.0,107040.0,1.56610902]
[1750122699646,0.00018933,107050.0,107040.0,1.30752383]
[1750122699876,0.00018933,107050.0,107040.0,1.14880383]
[1750122700076,0.00018933,107050.0,107040.0,1.30748383]
[1750122700196,0.00018933,107050.0,107040.0,0.89021864]
[1750122700401,0.00018933,107050.0,107040.0,1.10524383]
[1750122700629,0.00018933,107050.0,107040.0,1.30708383]
[1750122700810,0.00018933,107050.0,107040.0,0.60665864]
[1750122701010,0.00018933,107050.0,107040.0,0.31611364]
[1750122701230,0.14011805,107050.0,107040.0,0.35927364]
[1750122701432,0.14011805,107050.0,107040.0,0.51795364]
[1750122701661,0.14011805,107050.0,107040.0,0.35927364]
[1750122701872,0.14011805,107050.0,107040.0,0.31611364]
[1750122702076,0.14011805,107050.0,107040.0,0.51795364]
[1750122702838,0.06588933,107050.0,107040.0,0.51795364]
[1750122703045,0.06588933,107050.0,107040.0,0.35927364]
[1750122703253,0.06588933,107050.0,107040.0,0.31611364]
[1750122703530,0.06588933,107050.0,107040.0,0.51795364]
[1750122704379,0.00018933,107050.0,107040.0,0.51795364]
[1750122704602,0.00018933,107050.0,107040.0,1.05843883]
[1750122704827,0.00018933,107050.0,107040.0,1.65702402]
[1750122705045,4.732e-05,107050.0,107040.0,1.70507002]
[1750122705264,0.1298,107090.0,107080.0,0.23479162]
[1750122705476,0.1,107090.0,107080.0,0.53287338]
[1750122706632,0.101,107090.0,107080.0,0.53301486]
[1750122706879,0.1,107090.0,107080.0,1.26468658]
[1750122707135,0.1,107090.0,107080.0,1.28568658]
[1750122708637,0.101,107090.0,107080.0,1.28568658]
[1750122708847,0.101,107090.0,107080.0,0.54166139]
[1750122709076,0.101,107090.0,107080.0,0.53217486]
[1750122709296,0.101,107090.0,107080.0,0.73401486]
[1750122710156,0.101,107090.0,107080.0,0.73397486]
[1750122712918,0.101,107090.0,107080.0,0.53217486]
[1750122713133,0.101,107090.0,107080.0,0.73397486]
[1750122713581,0.101,107090.0,107080.0,0.76687486]
[1750122714233,0.101,107090.0,107080.0,0.73397486]